[Event "*** Titled Tuesday Blitz"]
[Site "Chess.com"]
[Date "2020.11.24"]
[Round "10"]
[White "santosalberto1987"]
[Black "DonPreuss"]
[Result "0-1"]
[WhiteElo "2411"]
[BlackElo "2240"]
[TimeControl "180+1"]
[EndTime "12:14:07 PST"]
[Termination "DonPreuss won by resignation"]

1. e4 {[%clk 0:02:59.7]} 1... e5 {[%clk 0:02:59.5]} 2. Nf3 {[%clk 0:02:53]} 2...
d5 {[%clk 0:02:59.8]} 3. Nxe5 {[%clk 0:02:52.2]} 3... Bd6 {[%clk 0:02:59.3]} 4.
d4 {[%clk 0:02:50.5]} 4... dxe4 {[%clk 0:02:59.7]} 5. Bc4 {[%clk 0:02:49.8]}
5... Bxe5 {[%clk 0:02:59.9]} 6. Qh5 {[%clk 0:02:49.9]} 6... Qe7 {[%clk
0:02:59.3]} 7. dxe5 {[%clk 0:02:49.2]} 7... Nc6 {[%clk 0:02:48.5]} 8. Bf4 {[%clk
0:02:48.1]} 8... g6 {[%clk 0:02:26.5]} 9. Qe2 {[%clk 0:02:47.1]} 9... Nxe5
{[%clk 0:02:26.5]} 10. Bb3 {[%clk 0:02:31.5]} 10... Nf6 {[%clk 0:02:13.3]} 11.
Nc3 {[%clk 0:02:29]} 11... Bf5 {[%clk 0:02:11.5]} 12. O-O-O {[%clk 0:02:24.7]}
12... Bg4 {[%clk 0:01:30.3]} 13. f3 {[%clk 0:02:21.7]} 13... exf3 {[%clk
0:01:28.6]} 14. Qxe5 {[%clk 0:02:11]} 14... fxg2 {[%clk 0:01:21]} 15. Rhe1
{[%clk 0:01:57.2]} 15... Qxe5 {[%clk 0:01:06.5]} 16. Bxe5 {[%clk 0:01:57.2]}
16... O-O {[%clk 0:00:44.9]} 17. Bxf6 {[%clk 0:01:56.3]} 17... Bxd1 {[%clk
0:00:44.1]} 18. Nxd1 {[%clk 0:01:56.3]} 18... Rfe8 {[%clk 0:00:40.2]} 19. Rg1
{[%clk 0:01:56.2]} 19... Re2 {[%clk 0:00:36.7]} 20. Bc4 {[%clk 0:01:53.6]} 20...
Rf2 {[%clk 0:00:36.2]} 21. Bd4 {[%clk 0:01:53.4]} 21... Rf4 {[%clk 0:00:36.4]}
22. c3 {[%clk 0:01:46.6]} 22... c5 {[%clk 0:00:36]} 23. Be3 {[%clk 0:01:37.6]}
23... Rxc4 {[%clk 0:00:35.6]} 24. Rxg2 {[%clk 0:01:38]} 24... Re8 {[%clk
0:00:35.5]} 25. Kd2 {[%clk 0:01:33.3]} 25... h5 {[%clk 0:00:33.8]} 26. Bg5
{[%clk 0:01:31.2]} 26... Rg4 {[%clk 0:00:32.9]} 27. Rxg4 {[%clk 0:01:29.4]}
27... hxg4 {[%clk 0:00:33.8]} 28. Ne3 {[%clk 0:01:21.6]} 28... f5 {[%clk
0:00:33.6]} 29. Nd5 {[%clk 0:01:21.9]} 29... Kf7 {[%clk 0:00:31.7]} 30. Kd3
{[%clk 0:01:17.6]} 30... Rh8 {[%clk 0:00:25.7]} 31. Bf4 {[%clk 0:01:13]} 31...
g5 {[%clk 0:00:26.2]} 32. Bxg5 {[%clk 0:01:09.3]} 32... Rxh2 {[%clk 0:00:26]}
33. Kc4 {[%clk 0:00:45.7]} 33... Rxb2 {[%clk 0:00:24.9]} 34. a4 {[%clk
0:00:44.6]} 34... g3 {[%clk 0:00:21.9]} 35. Kxc5 {[%clk 0:00:42.7]} 35... g2
{[%clk 0:00:20.6]} 36. Be3 {[%clk 0:00:42.4]} 36... Rb1 {[%clk 0:00:20.3]} 37.
Kd6 {[%clk 0:00:34.4]} 37... g1=Q {[%clk 0:00:19.6]} 38. Bxg1 {[%clk 0:00:34.9]}
38... Rxg1 {[%clk 0:00:19.9]} 39. Kc7 {[%clk 0:00:35.8]} 39... Rb1 {[%clk
0:00:19.8]} 40. c4 {[%clk 0:00:33.7]} 40... Ke6 {[%clk 0:00:19.3]} 41. a5 {[%clk
0:00:27.4]} 41... Ke5 {[%clk 0:00:19.4]} 42. Kb8 {[%clk 0:00:23.7]} 42... f4
{[%clk 0:00:16.6]} 43. Kxa7 {[%clk 0:00:20.1]} 43... f3 {[%clk 0:00:15.7]} 44.
Ne3 {[%clk 0:00:20]} 44... Kd4 {[%clk 0:00:14.3]} 45. Ng4 {[%clk 0:00:19]} 45...
Kxc4 {[%clk 0:00:10.9]} 0-1

[Event "*** Titled Tuesday Blitz"]
[Site "Chess.com"]
[Date "2020.11.24"]
[Round "10"]
[White "Trickov"]
[Black "GMKrikor"]
[Result "0-1"]
[WhiteElo "2357"]
[BlackElo "2693"]
[TimeControl "180+1"]
[EndTime "12:14:09 PST"]
[Termination "GMKrikor won on time"]

1. d4 {[%clk 0:03:00.3]} 1... Nf6 {[%clk 0:02:59.1]} 2. Nf3 {[%clk 0:02:56.4]}
2... g6 {[%clk 0:02:58.8]} 3. c4 {[%clk 0:02:50.4]} 3... Bg7 {[%clk 0:02:58]} 4.
g3 {[%clk 0:02:49.8]} 4... d5 {[%clk 0:02:57.5]} 5. Bg2 {[%clk 0:02:45.9]} 5...
dxc4 {[%clk 0:02:57.1]} 6. Na3 {[%clk 0:02:44.5]} 6... c3 {[%clk 0:02:54.2]} 7.
bxc3 {[%clk 0:02:43.8]} 7... O-O {[%clk 0:02:55.1]} 8. O-O {[%clk 0:02:43.6]}
8... c5 {[%clk 0:02:53.8]} 9. Nc4 {[%clk 0:02:43.1]} 9... Nc6 {[%clk 0:02:52.5]}
10. Nfe5 {[%clk 0:02:43.1]} 10... Nd5 {[%clk 0:02:48.6]} 11. Nxc6 {[%clk
0:02:38.2]} 11... bxc6 {[%clk 0:02:49.5]} 12. Bb2 {[%clk 0:02:36.1]} 12... Rb8
{[%clk 0:02:48.5]} 13. Rb1 {[%clk 0:02:23.3]} 13... Ba6 {[%clk 0:02:33.7]} 14.
Ne5 {[%clk 0:02:17.7]} 14... Bxe5 {[%clk 0:01:43.1]} 15. dxe5 {[%clk 0:02:15]}
15... Qc7 {[%clk 0:01:36]} 16. Qc2 {[%clk 0:02:00.4]} 16... Bc4 {[%clk
0:01:32.4]} 17. Ba3 {[%clk 0:01:36.5]} 17... Qxe5 {[%clk 0:01:27.1]} 18. Bxc5
{[%clk 0:01:22.6]} 18... Rxb1 {[%clk 0:01:19]} 19. Rxb1 {[%clk 0:01:10.6]} 19...
Nxc3 {[%clk 0:01:17.9]} 20. Rb4 {[%clk 0:01:02.7]} 20... Nxe2+ {[%clk
0:01:11.5]} 21. Kh1 {[%clk 0:01:01.1]} 21... Qxc5 {[%clk 0:00:55.4]} 22. Qxc4
{[%clk 0:00:42.1]} 22... Qxf2 {[%clk 0:00:40.9]} 23. Rb1 {[%clk 0:00:41.4]}
23... Nd4 {[%clk 0:00:37]} 24. Rf1 {[%clk 0:00:33.2]} 24... Qe3 {[%clk
0:00:36.7]} 25. Bxc6 {[%clk 0:00:28.3]} 25... Nxc6 {[%clk 0:00:19.1]} 26. Qxc6
{[%clk 0:00:27]} 26... Qb6 {[%clk 0:00:15.6]} 27. Qc4 {[%clk 0:00:20.7]} 27...
Qb7+ {[%clk 0:00:13.7]} 28. Kg1 {[%clk 0:00:19.8]} 28... e6 {[%clk 0:00:14.2]}
29. h4 {[%clk 0:00:17.8]} 29... h5 {[%clk 0:00:13.3]} 30. Qf4 {[%clk 0:00:10.5]}
30... Qd5 {[%clk 0:00:09.4]} 31. Rf2 {[%clk 0:00:05.5]} 31... a5 {[%clk
0:00:07.8]} 32. Kh2 {[%clk 0:00:05]} 32... e5 {[%clk 0:00:07.5]} 33. Qf6 {[%clk
0:00:02.5]} 33... e4 {[%clk 0:00:07.2]} 34. Qf4 {[%clk 0:00:01.2]} 34... Re8
{[%clk 0:00:06.9]} 0-1

[Event "*** Titled Tuesday Blitz"]
[Site "Chess.com"]
[Date "2020.11.24"]
[Round "10"]
[White "esapunov"]
[Black "Beca95"]
[Result "1-0"]
[WhiteElo "2822"]
[BlackElo "2912"]
[TimeControl "180+1"]
[EndTime "12:14:11 PST"]
[Termination "esapunov won on time"]

1. c4 {[%clk 0:03:00.8]} 1... g6 {[%clk 0:02:59]} 2. g3 {[%clk 0:02:59.8]} 2...
Bg7 {[%clk 0:02:57.6]} 3. Bg2 {[%clk 0:02:59.8]} 3... c5 {[%clk 0:02:57.7]} 4.
Nc3 {[%clk 0:02:59.1]} 4... Nc6 {[%clk 0:02:56.5]} 5. e3 {[%clk 0:02:58.9]} 5...
d6 {[%clk 0:02:49]} 6. Nge2 {[%clk 0:02:58.3]} 6... h5 {[%clk 0:02:48.1]} 7. h3
{[%clk 0:02:57.7]} 7... e5 {[%clk 0:02:44.3]} 8. a3 {[%clk 0:02:54.2]} 8... a5
{[%clk 0:02:42.9]} 9. d3 {[%clk 0:02:53.1]} 9... Nge7 {[%clk 0:02:42.1]} 10. Rb1
{[%clk 0:02:37.9]} 10... Be6 {[%clk 0:02:34.2]} 11. e4 {[%clk 0:02:35.1]} 11...
f5 {[%clk 0:02:10.3]} 12. Bg5 {[%clk 0:02:26.9]} 12... Qd7 {[%clk 0:01:35.9]}
13. Nd5 {[%clk 0:02:25.4]} 13... Bxd5 {[%clk 0:01:36.1]} 14. cxd5 {[%clk
0:02:22.2]} 14... Nd4 {[%clk 0:01:31.9]} 15. Nxd4 {[%clk 0:02:07.6]} 15... cxd4
{[%clk 0:01:30.4]} 16. h4 {[%clk 0:01:50.4]} 16... Bh6 {[%clk 0:01:20.6]} 17.
Bxe7 {[%clk 0:01:47.8]} 17... Kxe7 {[%clk 0:01:18]} 18. Bh3 {[%clk 0:01:46.1]}
18... Rac8 {[%clk 0:01:12.5]} 19. Kf1 {[%clk 0:01:35.2]} 19... Kf6 {[%clk
0:01:09]} 20. Kg2 {[%clk 0:01:28.5]} 20... Qf7 {[%clk 0:00:49.5]} 21. b4 {[%clk
0:01:24.4]} 21... a4 {[%clk 0:00:47.5]} 22. Qxa4 {[%clk 0:01:16.1]} 22... Rc3
{[%clk 0:00:45.9]} 23. Qd1 {[%clk 0:01:13.2]} 23... Kg7 {[%clk 0:00:42.3]} 24.
a4 {[%clk 0:01:07.3]} 24... Rf8 {[%clk 0:00:41.1]} 25. Rf1 {[%clk 0:01:01.5]}
25... fxe4 {[%clk 0:00:32.6]} 26. dxe4 {[%clk 0:01:01.1]} 26... Rf3 {[%clk
0:00:32.8]} 27. Rb2 {[%clk 0:00:56.2]} 27... Be3 {[%clk 0:00:30.9]} 28. a5
{[%clk 0:00:49.8]} 28... d3 {[%clk 0:00:23.3]} 29. Kh1 {[%clk 0:00:36.9]} 29...
Bd4 {[%clk 0:00:18.7]} 30. Rd2 {[%clk 0:00:32.7]} 30... Bxf2 {[%clk 0:00:13.2]}
31. Rxd3 {[%clk 0:00:30.3]} 31... Rf6 {[%clk 0:00:13.4]} 32. Kg2 {[%clk
0:00:27.3]} 32... Ba7 {[%clk 0:00:12.4]} 33. Rxf6 {[%clk 0:00:27.1]} 33... Qxf6
{[%clk 0:00:13]} 34. Rf3 {[%clk 0:00:27.7]} 34... Qxf3+ {[%clk 0:00:12.7]} 35.
Qxf3 {[%clk 0:00:27.8]} 35... Rxf3 {[%clk 0:00:13.1]} 36. Kxf3 {[%clk
0:00:28.2]} 36... Bd4 {[%clk 0:00:13.7]} 37. Bc8 {[%clk 0:00:27]} 37... Bc3
{[%clk 0:00:13.7]} 38. Bxb7 {[%clk 0:00:27.6]} 38... Bxb4 {[%clk 0:00:14.1]} 39.
a6 {[%clk 0:00:28.2]} 39... Bc5 {[%clk 0:00:14.6]} 40. Bc8 {[%clk 0:00:28.5]}
40... Kf6 {[%clk 0:00:14.5]} 41. Bd7 {[%clk 0:00:28.3]} 41... g5 {[%clk
0:00:14.5]} 42. Be8 {[%clk 0:00:28.1]} 42... gxh4 {[%clk 0:00:14.9]} 43. gxh4
{[%clk 0:00:28.4]} 43... Ba7 {[%clk 0:00:13.4]} 44. Bxh5 {[%clk 0:00:28.4]}
44... Bb6 {[%clk 0:00:13.8]} 45. Be8 {[%clk 0:00:28.2]} 45... Ba7 {[%clk
0:00:13.1]} 46. Kg4 {[%clk 0:00:28.4]} 46... Bb6 {[%clk 0:00:13.3]} 47. h5
{[%clk 0:00:28.5]} 47... Kg7 {[%clk 0:00:11.7]} 48. Kg5 {[%clk 0:00:28]} 1-0

[Event "*** Titled Tuesday Blitz"]
[Site "Chess.com"]
[Date "2020.11.24"]
[Round "10"]
[White "Savagelittlemole"]
[Black "beautroll"]
[Result "1-0"]
[WhiteElo "2559"]
[BlackElo "2422"]
[TimeControl "180+1"]
[EndTime "12:14:14 PST"]
[Termination "Savagelittlemole won by resignation"]

1. e4 {[%clk 0:03:00.9]} 1... c5 {[%clk 0:03:00]} 2. Ne2 {[%clk 0:03:00.7]} 2...
d6 {[%clk 0:02:59.2]} 3. g3 {[%clk 0:03:00.9]} 3... Nf6 {[%clk 0:02:59.1]} 4.
Bg2 {[%clk 0:03:01.6]} 4... g6 {[%clk 0:02:59.5]} 5. O-O {[%clk 0:03:02.2]} 5...
Nc6 {[%clk 0:02:59.1]} 6. c3 {[%clk 0:03:02.5]} 6... Bg7 {[%clk 0:02:59.2]} 7.
d4 {[%clk 0:03:02.7]} 7... O-O {[%clk 0:02:48.8]} 8. h3 {[%clk 0:03:01.9]} 8...
Qc7 {[%clk 0:02:48]} 9. Be3 {[%clk 0:03:02.1]} 9... b6 {[%clk 0:02:37.6]} 10.
Nd2 {[%clk 0:03:00]} 10... Bb7 {[%clk 0:02:36.8]} 11. Kh2 {[%clk 0:02:56.9]}
11... Rac8 {[%clk 0:02:35.3]} 12. d5 {[%clk 0:02:54.8]} 12... Nb8 {[%clk
0:02:33.4]} 13. c4 {[%clk 0:02:52]} 13... a6 {[%clk 0:02:32.9]} 14. Nc3 {[%clk
0:02:47.7]} 14... e6 {[%clk 0:02:29.6]} 15. Re1 {[%clk 0:02:02.8]} 15... Nbd7
{[%clk 0:02:27.5]} 16. Nf3 {[%clk 0:02:02.6]} 16... Rfe8 {[%clk 0:02:24.1]} 17.
dxe6 {[%clk 0:02:01.3]} 17... fxe6 {[%clk 0:02:22.1]} 18. Bf4 {[%clk 0:01:59.4]}
18... Ne5 {[%clk 0:02:21.9]} 19. Bxe5 {[%clk 0:01:44.1]} 19... dxe5 {[%clk
0:02:22.8]} 20. Qe2 {[%clk 0:01:44.3]} 20... Nd7 {[%clk 0:02:20.2]} 21. Rad1
{[%clk 0:01:43.5]} 21... Nb8 {[%clk 0:02:20.1]} 22. Rd2 {[%clk 0:01:42.4]} 22...
Nc6 {[%clk 0:02:19.7]} 23. Qd1 {[%clk 0:01:26.2]} 23... Nd4 {[%clk 0:02:18.6]}
24. a3 {[%clk 0:01:23.2]} 24... Bc6 {[%clk 0:02:14.2]} 25. Ng1 {[%clk
0:01:21.3]} 25... b5 {[%clk 0:02:12.5]} 26. cxb5 {[%clk 0:01:19.1]} 26... axb5
{[%clk 0:02:13.4]} 27. h4 {[%clk 0:01:05.3]} 27... h5 {[%clk 0:02:05.2]} 28. Nh3
{[%clk 0:01:04.7]} 28... b4 {[%clk 0:02:02.1]} 29. axb4 {[%clk 0:01:03.6]} 29...
cxb4 {[%clk 0:02:03]} 30. Ne2 {[%clk 0:00:57.2]} 30... Bd7 {[%clk 0:01:39.2]}
31. Ng5 {[%clk 0:00:49]} 31... Bf6 {[%clk 0:01:28.8]} 32. Nxd4 {[%clk
0:00:46.1]} 32... exd4 {[%clk 0:01:28.6]} 33. e5 {[%clk 0:00:42.2]} 33... Bxe5
{[%clk 0:01:25.8]} 34. Qb1 {[%clk 0:00:39.3]} 34... Kg7 {[%clk 0:01:23.2]} 35.
Be4 {[%clk 0:00:37.3]} 35... Rf8 {[%clk 0:00:38.2]} 36. Qd3 {[%clk 0:00:33.8]}
36... Rf6 {[%clk 0:00:35.9]} 37. f4 {[%clk 0:00:29.7]} 37... Bd6 {[%clk
0:00:32.8]} 38. Qxd4 {[%clk 0:00:27]} 38... e5 {[%clk 0:00:29.1]} 39. fxe5
{[%clk 0:00:26.3]} 39... Bxe5 {[%clk 0:00:20.2]} 40. Qxd7+ {[%clk 0:00:26.5]}
40... Qxd7 {[%clk 0:00:20.3]} 41. Rxd7+ {[%clk 0:00:27.4]} 41... Kg8 {[%clk
0:00:16.9]} 42. Bd5+ {[%clk 0:00:24.4]} 42... Kf8 {[%clk 0:00:17.1]} 43. Nh7+
{[%clk 0:00:21]} 43... Ke8 {[%clk 0:00:17]} 44. Nxf6+ {[%clk 0:00:21.2]} 44...
Kf8 {[%clk 0:00:16.5]} 45. Rxe5 {[%clk 0:00:19.3]} 45... Rc2+ {[%clk 0:00:15.5]}
46. Kh3 {[%clk 0:00:19.6]} 1-0

[Event "*** Titled Tuesday Blitz"]
[Site "Chess.com"]
[Date "2020.11.24"]
[Round "10"]
[White "Fandorine"]
[Black "LiamVrolijk"]
[Result "0-1"]
[WhiteElo "2861"]
[BlackElo "2814"]
[TimeControl "180+1"]
[EndTime "12:14:16 PST"]
[Termination "LiamVrolijk won by resignation"]

1. f4 {[%clk 0:03:00.9]} 1... d5 {[%clk 0:02:55.1]} 2. g3 {[%clk 0:03:00.5]}
2... h5 {[%clk 0:02:54.2]} 3. Nf3 {[%clk 0:02:57.8]} 3... h4 {[%clk 0:02:52.7]}
4. Bg2 {[%clk 0:02:55.3]} 4... h3 {[%clk 0:02:52]} 5. Bf1 {[%clk 0:02:55.3]}
5... Bf5 {[%clk 0:02:52]} 6. d3 {[%clk 0:02:55.1]} 6... Nf6 {[%clk 0:02:51.7]}
7. e3 {[%clk 0:02:53.4]} 7... c5 {[%clk 0:02:49.5]} 8. Qe2 {[%clk 0:02:51.2]}
8... Nc6 {[%clk 0:02:49.6]} 9. Nc3 {[%clk 0:02:51.2]} 9... e6 {[%clk 0:02:47.4]}
10. a3 {[%clk 0:02:47]} 10... a6 {[%clk 0:02:40.5]} 11. Qf2 {[%clk 0:02:40.5]}
11... Ng4 {[%clk 0:02:39.1]} 12. Qg1 {[%clk 0:02:40.4]} 12... d4 {[%clk
0:02:38]} 13. Nd1 {[%clk 0:02:38.6]} 13... dxe3 {[%clk 0:02:28]} 14. Nxe3 {[%clk
0:02:39.5]} 14... Be7 {[%clk 0:02:27.4]} 15. Be2 {[%clk 0:02:37.6]} 15... Bf6
{[%clk 0:02:21.3]} 16. Nxf5 {[%clk 0:02:31.1]} 16... exf5 {[%clk 0:02:22.1]} 17.
Qxc5 {[%clk 0:02:31.7]} 17... Qd7 {[%clk 0:02:20.2]} 18. Bd2 {[%clk 0:02:12.1]}
18... Nd4 {[%clk 0:02:15.4]} 19. Nxd4 {[%clk 0:01:29.9]} 19... Bxd4 {[%clk
0:02:16.3]} 20. Qb4 {[%clk 0:01:29.9]} 20... Bf2+ {[%clk 0:02:12.2]} 21. Kd1
{[%clk 0:01:29.8]} 21... a5 {[%clk 0:01:43.5]} 22. Qb3 {[%clk 0:01:23]} 22...
O-O {[%clk 0:01:40.1]} 23. Bf3 {[%clk 0:01:11.9]} 23... Rfe8 {[%clk 0:01:01.4]}
24. Kc1 {[%clk 0:00:38.3]} 24... Rac8 {[%clk 0:00:46]} 25. Kb1 {[%clk
0:00:38.5]} 25... b5 {[%clk 0:00:44]} 26. a4 {[%clk 0:00:37.8]} 26... b4 {[%clk
0:00:43.5]} 27. Ka2 {[%clk 0:00:37.5]} 27... Ne3 {[%clk 0:00:31.6]} 28. Rac1
{[%clk 0:00:30.1]} 28... g6 {[%clk 0:00:18.9]} 29. Bxe3 {[%clk 0:00:20.7]} 29...
Bxe3 {[%clk 0:00:19.8]} 30. Bd5 {[%clk 0:00:21.3]} 30... Bxc1 {[%clk 0:00:19.6]}
31. Rxc1 {[%clk 0:00:20.7]} 31... Re2 {[%clk 0:00:19]} 32. Bc4 {[%clk
0:00:16.3]} 32... Rxh2 {[%clk 0:00:19.1]} 33. Re1 {[%clk 0:00:16.7]} 33... Rg2
{[%clk 0:00:17.9]} 34. d4 {[%clk 0:00:12.2]} 34... h2 {[%clk 0:00:17.2]} 35. Bd5
{[%clk 0:00:11.9]} 35... Rgxc2 {[%clk 0:00:15]} 36. g4 {[%clk 0:00:12.4]} 36...
R8c3 {[%clk 0:00:15.2]} 37. Bxf7+ {[%clk 0:00:06.3]} 37... Kg7 {[%clk
0:00:15.5]} 38. Qe6 {[%clk 0:00:05.2]} 38... Qxf7 {[%clk 0:00:15.5]} 39. d5
{[%clk 0:00:04.1]} 39... Qxe6 {[%clk 0:00:14.7]} 40. dxe6 {[%clk 0:00:04.7]}
40... Rc8 {[%clk 0:00:15.4]} 41. gxf5 {[%clk 0:00:05.6]} 41... gxf5 {[%clk
0:00:15.7]} 42. Kb3 {[%clk 0:00:06.5]} 42... Rg2 {[%clk 0:00:15.6]} 43. e7
{[%clk 0:00:07.4]} 43... Re8 {[%clk 0:00:15.9]} 44. Re2 {[%clk 0:00:08.3]} 44...
Rxe2 {[%clk 0:00:16]} 0-1

[Event "*** Titled Tuesday Blitz"]
[Site "Chess.com"]
[Date "2020.11.24"]
[Round "10"]
[White "Zq1"]
[Black "Julianos82"]
[Result "1/2-1/2"]
[WhiteElo "2586"]
[BlackElo "2366"]
[TimeControl "180+1"]
[EndTime "12:14:17 PST"]
[Termination "Game drawn by repetition"]

1. d4 {[%clk 0:03:00.7]} 1... d5 {[%clk 0:02:57.7]} 2. c4 {[%clk 0:03:00.1]}
2... dxc4 {[%clk 0:02:58.4]} 3. e4 {[%clk 0:02:58.3]} 3... Nc6 {[%clk
0:02:57.6]} 4. Be3 {[%clk 0:02:55.7]} 4... e5 {[%clk 0:02:52.2]} 5. d5 {[%clk
0:02:53.2]} 5... Nce7 {[%clk 0:02:52.1]} 6. Bxc4 {[%clk 0:02:50.8]} 6... a6
{[%clk 0:02:50.5]} 7. a4 {[%clk 0:02:48.7]} 7... Nf6 {[%clk 0:02:49.3]} 8. f3
{[%clk 0:02:47.1]} 8... Ng6 {[%clk 0:02:49.2]} 9. Ne2 {[%clk 0:02:45.3]} 9...
Bd6 {[%clk 0:02:46.9]} 10. g3 {[%clk 0:02:43.5]} 10... O-O {[%clk 0:02:44.9]}
11. h4 {[%clk 0:02:41.2]} 11... Bd7 {[%clk 0:02:38.2]} 12. Nbc3 {[%clk
0:02:39.4]} 12... Rb8 {[%clk 0:02:32.7]} 13. h5 {[%clk 0:02:37.5]} 13... Ne7
{[%clk 0:02:31.8]} 14. h6 {[%clk 0:02:37.3]} 14... g6 {[%clk 0:02:25.3]} 15. Bg5
{[%clk 0:02:27.1]} 15... Ne8 {[%clk 0:02:22.6]} 16. Qd3 {[%clk 0:02:05.6]} 16...
f6 {[%clk 0:02:17]} 17. Be3 {[%clk 0:02:04.6]} 17... Kh8 {[%clk 0:01:49.4]} 18.
g4 {[%clk 0:02:04.6]} 18... g5 {[%clk 0:01:41.6]} 19. Ng3 {[%clk 0:01:58.5]}
19... Ng6 {[%clk 0:01:36.1]} 20. Nh5 {[%clk 0:01:57.9]} 20... Nf4 {[%clk
0:01:26.2]} 21. Nxf4 {[%clk 0:01:53.3]} 21... exf4 {[%clk 0:01:24.1]} 22. Bd4
{[%clk 0:01:44.7]} 22... Be5 {[%clk 0:01:24.1]} 23. a5 {[%clk 0:01:35.3]} 23...
Nd6 {[%clk 0:01:20.4]} 24. Bxe5 {[%clk 0:01:34.7]} 24... fxe5 {[%clk 0:01:21.3]}
25. Kf2 {[%clk 0:01:26.9]} 25... Qe7 {[%clk 0:01:20.1]} 26. Kg2 {[%clk
0:01:24.8]} 26... Rf6 {[%clk 0:01:17.3]} 27. Bb3 {[%clk 0:01:16.8]} 27... Rbf8
{[%clk 0:01:15.7]} 28. Ba4 {[%clk 0:01:13.6]} 28... Bxg4 {[%clk 0:01:06.7]} 29.
fxg4 {[%clk 0:01:10.6]} 29... f3+ {[%clk 0:01:07.6]} 30. Kf2 {[%clk 0:01:07.4]}
30... Rf4 {[%clk 0:01:06.6]} 31. Rag1 {[%clk 0:01:04.9]} 31... Qf6 {[%clk
0:01:00.8]} 32. Bd7 {[%clk 0:00:56.8]} 32... Qg6 {[%clk 0:00:53.8]} 33. Bf5
{[%clk 0:00:54.7]} 33... Nxf5 {[%clk 0:00:52.1]} 34. exf5 {[%clk 0:00:45.8]}
34... Qd6 {[%clk 0:00:51.7]} 35. Ne4 {[%clk 0:00:45.1]} 35... Qb4 {[%clk
0:00:50.5]} 36. Re1 {[%clk 0:00:35.7]} 36... Rxg4 {[%clk 0:00:36.6]} 37. Rhg1
{[%clk 0:00:24.6]} 37... Qxb2+ {[%clk 0:00:31.5]} 38. Qd2 {[%clk 0:00:23.6]}
38... Qxd2+ {[%clk 0:00:26.5]} 39. Nxd2 {[%clk 0:00:23.1]} 39... Rd4 {[%clk
0:00:25.5]} 40. Ne4 {[%clk 0:00:20]} 40... Rxf5 {[%clk 0:00:24.1]} 41. Rxg5
{[%clk 0:00:19.9]} 41... Rxg5 {[%clk 0:00:23.4]} 42. Nxg5 {[%clk 0:00:19.9]}
42... Rxd5 {[%clk 0:00:23.8]} 43. Rxe5 {[%clk 0:00:19.1]} 43... Rxe5 {[%clk
0:00:21.8]} 44. Nf7+ {[%clk 0:00:18.9]} 44... Kg8 {[%clk 0:00:21.9]} 45. Nxe5
{[%clk 0:00:19.3]} 45... b6 {[%clk 0:00:21.4]} 46. axb6 {[%clk 0:00:16.2]} 46...
cxb6 {[%clk 0:00:22.3]} 47. Kxf3 {[%clk 0:00:15.1]} 47... Kf8 {[%clk 0:00:22.3]}
48. Kf4 {[%clk 0:00:14.1]} 48... a5 {[%clk 0:00:22.5]} 49. Nc4 {[%clk
0:00:13.6]} 49... a4 {[%clk 0:00:21.1]} 50. Na3 {[%clk 0:00:11.9]} 50... Kf7
{[%clk 0:00:20.7]} 51. Kf5 {[%clk 0:00:11.9]} 51... Ke7 {[%clk 0:00:21]} 52. Nb5
{[%clk 0:00:11.2]} 52... Kf7 {[%clk 0:00:21.2]} 53. Na3 {[%clk 0:00:11.4]} 53...
Ke7 {[%clk 0:00:20.7]} 54. Nb5 {[%clk 0:00:11]} 54... Kf7 {[%clk 0:00:21]} 55.
Na3 {[%clk 0:00:09.4]} 1/2-1/2